Workbook

Sheet Presentacion
G4: ESCUELA COLOMBIANA DE INGENIERIA JULIO GARAVITO
G6: ESPECIALIZACIÓN EN RECURSOS HIDRÁULICOS Y MEDIO AMBIENTE
G8: Trabajo de grado: | I8: Guía y herramienta computacional para el diseño hidráulico de un sistema de tratamiento preliminar (cribado y Desarenador) de aguas residuales
A10: Autores
F11: Introducción
B12: Belquis Sepúlveda Mancipe | G12: El objetivo del aplicativo es analizar el operaciones unitarias de los sistemas de tratamiento preliminar de aguas residuales, analizando operaciones básicas de tipo físico para la separación de solidos de gran tamaño y arenas. Los procesos analizados en el presente aplicativo corresponden a sistemas de cribado, el cual se emplea para la separación de materiales gruesos mediante el paso del fluido mediante cribas o rejillas, y Desarenadores, los cuales se emplean principalmente para la remoción de materiales como arenas, gravas y otros.
B13: Ingeniera Sanitaria
B14: Especialista en Ingeniera Ambiental
B16: Javier Sierra Mesa
B17: Ingeniero Civil
A19: Apoyo técnico:
B20: Fernando Gama Doza
B21: Ingeniero de Sistemas
B22: Especialista en bases de datos | F22: Configuración Inicial de Excel
A24: Tutor: | G24: 1. Activación de la opción Programador en Excel: Ir a Archivo -Opciones de Excel - Personalizar Cinta de Opciones -Comandos mas Usados. Incluir "Programador"
B25: Jairo Alberto Romero Rojas | G25: 2. Activar Macros: Una vez se activa el programador buscar en la Pestaña "Programador"-seguridad de macros -Configuración de macros -Habilitar todas las macros
B26: Ingeniero civil | G26: 3. Habilitar la Opción solver ir a Archivo -Opciones de Excel -Complementos-seleccionar complementos de Excel- seleccionar Solver -Seleccionar Aceptar
B27: Master of engineering
F28: Bibliografía
G29: Para la elaboración del aplicativo se emplean diferentes fuentes entre las cuales e encuentran:
G30: 1 | H30: Qasim, S (1999). Wastewater treatment plants - Planning, desing and operation. Second Edition
G31: 2 | H31: Metcalf & Eddy Inc. Wastewater Engineering: Teatment and Reuse, McGraw Hill, 2003
G32: 3 | H32: Tchobanoglous, Crites, Aguas Residuales Para Núcleos Pequeños, 2000.
G33: 4 | H33: Romero Jairo, Tratamiento de Aguas Residuales, Teoría y Principios de Diseño, 3a Ed. 2004
G34: 5 | H34: WEF, ASCE. Desing of municipal Wasteater Treatment Plans, 5a Ed.2009
G35: 6 | H35: WEF, Natural Systems for Wastewater Treatment MOPFD -16, 3a Ed. 2010

Sheet Criterios de diseño
C2: ESCUELA COLOMBIANA DE INGENIERIA JULIO GARAVITO
C4: ESPECIALIZACIÓN EN RECURSOS HIDRÁULICOS Y MEDIO AMBIENTE
C6: Trabajo de grado: | E6: Guía y herramienta computacional para el diseño hidráulico de un sistema de tratamiento preliminar (cribado y Desarenador) de aguas residuales
B8: COEFICIENTE DE RUGOSIDAD PARA DIFERENTES MATERIALES | J8: CRITERIOS TEORICOS DE DISEÑO DEL DESARENADOR
C10: Manning´s n (adimensional) | L10: Profun | M10: Long | N10: Ancho | O10: R L:A | P10: R A:P
B11: Hierro Colado | D11: 0.012 | E11: a | F11: 0.015 | K11: Desarenedor de Flujo Horizontal | L11: 2 - 5 | O11: 2,5:1 -5:1
B12: Hormigon o Revestido en Hormigon | D12: 0.012 | E12: a | F12: 0.017 | K12: Desarenador Aireado | L12: 2 - 5 | M12: 8 -20 | N12: 2,5 - 7 | O12: 3:1 - 5:1
B13: Hierro Galvanizado | D13: 0.015 | E13: a | F13: 0.017 | K13: Desarenador Tipo Vórtice | L13: 2,5 - 5
B14: Plástico | D14: 0.011 | E14: a | F14: 0.015
B15: Acero | D15: 0.015 | E15: a | F15: 0.017 | K15: R L:A R elacion Largo: Ancho | L15: Velocidad Minima del agua 0,2-0,4 m/s
B16: Arcilla Vitrificada | D16: 0.013 | E16: a | F16: 0.015 | K16: R:A:P Relación Ancho: Profundidad | L16: Tiempo de Retencion Hidraulica 20seg -3 min
B18: CRITERIOS TEORICOS DE DISEÑO DEL CRIBADO.
B20: Criterios de diseño de las rejas manuales y mecanicas gruesas | K20: Criterios de diseño de las rejas manuales y mecanicas finas
B21: Factor de diseño | C21: Unidad | D21: Manual | G21: Mecanico | K21: Factor de diseño | L21: Unidad | M21: Manual | P21: Mecanico
B22: Velocidad a través de la reja | C22: m/s | D22: 0.6 | E22: a | F22: 1.2 | G22: 0.6 | H22: a | I22: 1.2 | K22: Velocidad a través de la reja | L22: m/s | M22: 0.6 | N22: a | O22: 1.2 | P22: 0.6 | Q22: a | R22: 1.2
B23: Tamaño de las barras | E23: 0.015 | K23: Tamaño de las barras
B24: Ancho de barras | C24: mm | D24: 4 | E24: a | F24: 8 | G24: 8 | H24: a | I24: 10 | K24: Ancho | L24: mm | M24: 4 | N24: a | O24: 8 | P24: 8 | Q24: a | R24: 10
B25: Profundidad | C25: mm | D25: 25 | E25: a | F25: 50 | G25: 50 | H25: a | I25: 75 | K25: Profundidad | L25: mm | M25: 25 | N25: a | O25: 50 | P25: 50 | Q25: a | R25: 75
B26: Separación entre barras | C26: mm | D26: 40 | E26: a | F26: 100 | G26: 40 | H26: a | I26: 100 | K26: Separación entre barras | L26: mm | M26: 10 | N26: a | O26: 20 | P26: 10 | Q26: a | R26: 20
B27: Inclinación | C27: Grados | D27: 45 | E27: a | F27: 60 | G27: 60 | H27: a | I27: 90 | K27: Inclinación | L27: Grados | M27: 45 | N27: a | O27: 60 | P27: 75 | Q27: a | R27: 85
B28: Perdida de carga permisible, reja obstruida | C28: mm | D28: 150 | G28: 150 | K28: Perdida de carga permisible, reja obstruida | L28: mm | M28: 150 | P28: 150
B29: Máxima perdida de carga, reja obtruida | C29: mm | D29: 800 | G29: 800 | K29: Máxima perdida de carga, reja obtruida | L29: mm | M29: 800 | P29: 800
B30: Angulo de inclinacion de la reja | C30: º | D30: 75 | G30: 75 | K30: Angulo de inclinacion de la reja | L30: º | M30: 75 | P30: 75

Sheet relaciones hidraulicas (hidden)
C2: n | D2: ='Diseño Cribado'!E23 -> 0.015 | E2: q | F2: ='Diseño Cribado'!E15 -> 0.1 | G2: q/Q | H2: =F2/F3 -> 0.6474921849
C3: R | D3: ='Diseño Cribado'!E29 -> 0.1275 | E3: Q | F3: =(0.312/D2)*(D5^(8/3))*(D4^(1/2)) -> 0.1544420185 | G3: v/V | H3: =LOOKUP(M9,K8:K107,J8:J107) -> 1.058759005 | J3: v | K3: =H3*F4 -> 0.7996396352
C4: S | D4: ='Diseño Cribado'!E22 -> 0.002 | E4: V | F4: =(1/D2)*(D3^(2/3))*(D4^(1/2)) -> 0.7552612365 | G4: y/D | H4: =LOOKUP(M9,K8:K107,I8:I107) -> 0.5782172326 | J4: y | K4: =H4*D5 -> 0.2948907886 | M4: =LOOKUP(H2,K8:K107,J8:J107) -> 1.058759005 | N4: se aproxima al menor
C5: D | D5: ='Diseño Cribado'!E25 -> 0.51 | M5: =MATCH(M4,J8:J107,0)+1 -> 56 | N5: la fila en la que esta el numero por ensima
C6: theta | D6: y/D | E6: v | F6: V_full | G6: q | H6: Q_full | I6: y/D | J6: v/V_full | K6: q/Q_full | M6: =INDEX(K8:K107,M5) -> 0.6610151178 | N6: este es el numero por ensima
B7: 0 | C7: 0 | D7: 0 | E7: 0 | I7: 0 | M7: =INDEX(K8:K107,M5-1) -> 0.6343888958 | N7: el numero por abajo
B8: 0.01 | C8: 0.03141592654 | D8: 0.0002467198172 | E8: 0.003111488201 | F8: 0.4113577768 | G8: 6.75598259e-10 | H8: 0.01357742197 | I8: 0.0002467198172 | J8: 0.007563946463 | K8: 4.975894985e-08 | M8: =(M6+M7)/2 -> 0.6477020068 | N8: el promedio
B9: 0.02 | C9: 0.06283185308 | D9: 0.0009866357861 | E9: 0.007837364211 | F9: 0.4113577768 | G9: 1.360577218e-08 | H9: 0.01357742197 | I9: 0.0009866357861 | J9: 0.01905242748 | K9: 1.002088041e-06 | M9: =IF(H2>=M8,M6,M7) -> 0.6343888958 | N9: y el numero mas aproximado
B10: 0.03 | C10: 0.09424777962 | D10: 0.002219017699 | E10: 0.01344846147 | F10: 0.4113577768 | G10: 7.87174266e-08 | H10: 0.01357742197 | I10: 0.002219017699 | J10: 0.0326928582 | K10: 5.797671072e-06
B11: 0.04 | C11: 0.1256637062 | D11: 0.003942649344 | E11: 0.01971775573 | F11: 0.4113577768 | G11: 2.731944186e-07 | H11: 0.01357742197 | I11: 0.003942649344 | J11: 0.04793334864 | K11: 2.012122914e-05
B12: 0.05 | C12: 0.1570796327 | D12: 0.006155829704 | E12: 0.02651895316 | F12: 0.4113577768 | G12: 7.163562769e-07 | H12: 0.01357742197 | I12: 0.006155829704 | J12: 0.06446688177 | K12: 5.276084652e-05
B13: 0.06 | C13: 0.1884955592 | D13: 0.008856374638 | E13: 0.03376778173 | F13: 0.4113577768 | G13: 1.572807987e-06 | H13: 0.01357742197 | I13: 0.008856374638 | J13: 0.0820885945 | K13: 0.0001158399577
B14: 0.07 | C14: 0.2199114858 | D14: 0.01204161903 | E14: 0.04140203249 | F14: 0.4113577768 | G14: 3.05436068e-06 | H14: 0.01357742197 | I14: 0.01204161903 | J14: 0.1006472585 | K14: 0.0002249588093
B15: 0.08 | C15: 0.2513274123 | D15: 0.01570841944 | E15: 0.04937266195 | F15: 0.4113577768 | G15: 5.420938374e-06 | H15: 0.01357742197 | I15: 0.01570841944 | J15: 0.1200236503 | K15: 0.000399261243
B16: 0.09 | C16: 0.2827433389 | D16: 0.01985315717 | E16: 0.05763916569 | F16: 0.4113577768 | G16: 8.980589592e-06 | H16: 0.01357742197 | I16: 0.01985315717 | J16: 0.1401193047 | K16: 0.0006614355517
B17: 0.1 | C17: 0.3141592654 | D17: 0.02447174186 | E17: 0.06616691622 | F17: 0.4113577768 | G17: 1.408868184e-05 | H17: 0.01357742197 | I17: 0.02447174186 | J17: 0.1608500433 | K17: 0.00103765515
B18: 0.11 | C18: 0.3455751919 | D18: 0.02955961553 | E18: 0.07492551642 | F18: 0.4113577768 | G18: 2.114633818e-05 | H18: 0.01357742197 | I18: 0.02955961553 | J18: 0.1821419714 | K18: 0.001557463428
B19: 0.12 | C19: 0.3769911185 | D19: 0.03511175706 | E19: 0.08388772466 | F19: 0.4113577768 | G19: 3.059816689e-05 | H19: 0.01357742197 | I19: 0.03511175706 | J19: 0.2039288653 | K19: 0.002253606535
B20: 0.13 | C20: 0.408407045 | D20: 0.04112268717 | E20: 0.09302872327 | F20: 0.4113577768 | G20: 4.292933191e-05 | H20: 0.01357742197 | I20: 0.04112268717 | J20: 0.2261503939 | K20: 0.003161817611
B21: 0.14 | C21: 0.4398229716 | D21: 0.04758647378 | E21: 0.1023256039 | F21: 0.4113577768 | G21: 5.866201178e-05 | H21: 0.01357742197 | I21: 0.04758647378 | J21: 0.2487508678 | K21: 0.004320555986
B22: 0.15 | C22: 0.4712388981 | D22: 0.05449673792 | E22: 0.1117569961 | F22: 0.4113577768 | G22: 7.835129602e-05 | H22: 0.01357742197 | I22: 0.05449673792 | J22: 0.2716783355 | K22: 0.005770704938
B23: 0.16 | C23: 0.5026548246 | D23: 0.06184665999 | E23: 0.1213027928 | F23: 0.4113577768 | G23: 0.0001025805701 | H23: 0.01357742197 | I23: 0.06184665999 | J23: 0.2948839178 | K23: 0.007555231791
B24: 0.17 | C24: 0.5340707512 | D24: 0.06962898652 | E24: 0.1309439451 | F24: 0.4113577768 | G24: 0.0001319564431 | H24: 0.01357742197 | I24: 0.06962898652 | J24: 0.3183213069 | K24: 0.00971881432
B25: 0.18 | C25: 0.5654866777 | D25: 0.07783603727 | E25: 0.1406623054 | F25: 0.4113577768 | G25: 0.0001671032738 | H25: 0.01357742197 | I25: 0.07783603727 | J25: 0.3419463866 | K25: 0.01230743761
B26: 0.19 | C26: 0.5969026043 | D26: 0.08645971288 | E26: 0.1504405071 | F26: 0.4113577768 | G26: 0.0002086573552 | H26: 0.01357742197 | I26: 0.08645971288 | J26: 0.3657169393 | K26: 0.0153679657
B27: 0.2 | C27: 0.6283185308 | D27: 0.09549150284 | E27: 0.1602618716 | F27: 0.4113577768 | G27: 0.0002572608183 | H27: 0.01357742197 | I27: 0.09549150284 | J27: 0.3895924195 | K27: 0.01894769264
B28: 0.21 | C28: 0.6597344573 | D28: 0.1049224938 | E28: 0.1701103351 | F28: 0.4113577768 | G28: 0.000313555318 | H28: 0.01357742197 | I28: 0.1049224938 | J28: 0.413533777 | K28: 0.02309387736
B29: 0.22 | C29: 0.6911503839 | D29: 0.1147433786 | E29: 0.1799703925 | F29: 0.4113577768 | G29: 0.0003781755662 | H29: 0.01357742197 | I29: 0.1147433786 | J29: 0.4375033186 | K29: 0.02785326751
B30: 0.23 | C30: 0.7225663104 | D30: 0.1249444652 | E30: 0.189827052 | F30: 0.4113577768 | G30: 0.0004517427793 | H30: 0.01357742197 | I30: 0.1249444652 | J30: 0.4614646 | K30: 0.03327161667
B31: 0.24 | C31: 0.753982237 | D31: 0.1355156863 | E31: 0.1996658011 | F31: 0.4113577768 | G31: 0.0005348581028 | H31: 0.01357742197 | I31: 0.1355156863 | J31: 0.4853823419 | K31: 0.03939320026
B32: 0.25 | C32: 0.7853981635 | D32: 0.1464466094 | E32: 0.2094725793 | F32: 0.4113577768 | G32: 0.0006280960835 | H32: 0.01357742197 | I32: 0.1464466094 | J32: 0.5092223635 | K32: 0.0462603346
B33: 0.26 | C33: 0.81681409 | D33: 0.1577264471 | E33: 0.2192337578 | F33: 0.4113577768 | G33: 0.0007319982512 | H33: 0.01357742197 | I33: 0.1577264471 | J33: 0.532951533 | K33: 0.05391290428
B34: 0.27 | C34: 0.8482300166 | D34: 0.1693440674 | E34: 0.2289361231 | F34: 0.4113577768 | G34: 0.0008470668768 | H34: 0.01357742197 | I34: 0.1693440674 | J34: 0.5565377294 | K34: 0.0623879024
B35: 0.28 | C35: 0.8796459431 | D35: 0.1812880052 | E35: 0.2385668659 | F35: 0.4113577768 | G35: 0.0009737589675 | H35: 0.01357742197 | I35: 0.1812880052 | J35: 0.5799498135 | K35: 0.07171898829
B36: 0.29 | C36: 0.9110618697 | D36: 0.1935464732 | E36: 0.248113573 | F36: 0.4113577768 | G36: 0.00111248056 | H36: 0.01357742197 | I36: 0.1935464732 | J36: 0.6031576087 | K36: 0.08193606729
B37: 0.3 | C37: 0.9424777962 | D37: 0.2061073739 | E37: 0.257564221 | F37: 0.4113577768 | G37: 0.001263581371 | H37: 0.01357742197 | I37: 0.2061073739 | J37: 0.6261318868 | K37: 0.09306489656
B38: 0.31 | C38: 0.9738937227 | D38: 0.2189583111 | E38: 0.2669071734 | F38: 0.4113577768 | G38: 0.001427349853 | H38: 0.01357742197 | I38: 0.2189583111 | J38: 0.64884436 | K38: 0.1051267211
B39: 0.32 | C39: 1.005309649 | D39: 0.2320866026 | E39: 0.2761311793 | F39: 0.4113577768 | G39: 0.001604008713 | H39: 0.01357742197 | I39: 0.2320866026 | J39: 0.6712676771 | K39: 0.1181379438
B40: 0.33 | C40: 1.036725576 | D40: 0.2454792922 | E40: 0.2852253725 | F40: 0.4113577768 | G40: 0.001793710934 | H40: 0.01357742197 | I40: 0.2454792922 | J40: 0.693375423 | K40: 0.1321098319
B41: 0.34 | C41: 1.068141502 | D41: 0.259123163 | E41: 0.2941792733 | F41: 0.4113577768 | G41: 0.001996536341 | H41: 0.01357742197 | I41: 0.259123163 | J41: 0.7151421217 | K41: 0.1470482648
B42: 0.35 | C42: 1.099557429 | D42: 0.2730047502 | E42: 0.3029827902 | F42: 0.4113577768 | G42: 0.002212488753 | H42: 0.01357742197 | I42: 0.2730047502 | J42: 0.736543241 | K42: 0.1629535237
B43: 0.36 | C43: 1.130973355 | D43: 0.2871103543 | E43: 0.3116262227 | F43: 0.4113577768 | G43: 0.002441493741 | H43: 0.01357742197 | I43: 0.2871103543 | J43: 0.7575551996 | K43: 0.1798201268
B44: 0.37 | C44: 1.162389282 | D44: 0.3014260548 | E44: 0.3201002649 | F44: 0.4113577768 | G44: 0.002683397024 | H44: 0.01357742197 | I44: 0.3014260548 | J44: 0.7781553747 | K44: 0.1976367111
B45: 0.38 | C45: 1.193805209 | D45: 0.3159377237 | E45: 0.3283960091 | F45: 0.4113577768 | G45: 0.00293796352 | H45: 0.01357742197 | I45: 0.3159377237 | J45: 0.7983221119 | K45: 0.2163859624
B46: 0.39 | C46: 1.225221135 | D46: 0.33063104 | E46: 0.33650495 | F46: 0.4113577768 | G46: 0.003204877065 | H46: 0.01357742197 | I46: 0.33063104 | J46: 0.818034735 | K46: 0.2360445946
B47: 0.4 | C47: 1.256637062 | D47: 0.3454915029 | E47: 0.3444189888 | F47: 0.4113577768 | G47: 0.003483740804 | H47: 0.01357742197 | I47: 0.3454915029 | J47: 0.8372735565 | K47: 0.2565833787
B48: 0.41 | C48: 1.288052988 | D48: 0.3605044471 | E48: 0.3521304383 | F48: 0.4113577768 | G48: 0.003774078252 | H48: 0.01357742197 | I48: 0.3605044471 | J48: 0.8560198886 | K48: 0.2779672208
B49: 0.42 | C49: 1.319468915 | D49: 0.3756550565 | E49: 0.3596320268 | F49: 0.4113577768 | G49: 0.004075335029 | H49: 0.01357742197 | I49: 0.3756550565 | J49: 0.874256054 | K49: 0.3001552899
B50: 0.43 | C50: 1.350884841 | D50: 0.3909283794 | E50: 0.3669169027 | F50: 0.4113577768 | G50: 0.004386881246 | H50: 0.01357742197 | I50: 0.3909283794 | J50: 0.8919653969 | K50: 0.3231011936
B51: 0.44 | C51: 1.382300768 | D51: 0.4063093428 | E51: 0.373978639 | F51: 0.4113577768 | G51: 0.004708014526 | H51: 0.01357742197 | I51: 0.4063093428 | J51: 0.9091322933 | K51: 0.3467532007
B52: 0.45 | C52: 1.413716694 | D52: 0.4217827676 | E52: 0.3808112376 | F52: 0.4113577768 | G52: 0.005037963639 | H52: 0.01357742197 | I52: 0.4217827676 | J52: 0.9257421617 | K52: 0.3710545087
B53: 0.46 | C53: 1.445132621 | D53: 0.4373333833 | E53: 0.3874091328 | F53: 0.4113577768 | G53: 0.005375892724 | H53: 0.01357742197 | I53: 0.4373333833 | J53: 0.9417814726 | K53: 0.3959435551
B54: 0.47 | C54: 1.476548547 | D54: 0.4529458434 | E54: 0.3937671958 | F54: 0.4113577768 | G54: 0.005720906049 | H54: 0.01357742197 | I54: 0.4529458434 | J54: 0.9572377574 | K54: 0.4213543676
B55: 0.48 | C55: 1.507964474 | D55: 0.4686047403 | E55: 0.3998807375 | F55: 0.4113577768 | G55: 0.006072053285 | H55: 0.01357742197 | I55: 0.4686047403 | J55: 0.9720996175 | K55: 0.447216953
B56: 0.49 | C56: 1.5393804 | D56: 0.4842946206 | E56: 0.4057455121 | F56: 0.4113577768 | G56: 0.006428335248 | H56: 0.01357742197 | I56: 0.4842946206 | J56: 0.9863567312 | K56: 0.4734577198
B57: 0.5 | C57: 1.570796327 | D57: 0.5000000001 | E57: 0.4113577198 | F57: 0.4113577768 | G57: 0.006788710047 | H57: 0.01357742197 | I57: 0.5000000001 | J57: 0.9999998614 | K57: 0.4999999308
B58: 0.51 | C58: 1.602212254 | D58: 0.5157053796 | E58: 0.4167140091 | F58: 0.4113577768 | G58: 0.007152099601 | H58: 0.01357742197 | I58: 0.5157053796 | J58: 1.013020861 | K58: 0.5267641836
B59: 0.52 | C59: 1.63362818 | D59: 0.5313952599 | E59: 0.4218114791 | F59: 0.4113577768 | G59: 0.00751739646 | H59: 0.01357742197 | I59: 0.5313952599 | J59: 1.025412677 | K59: 0.5536689127
B60: 0.53 | C60: 1.665044107 | D60: 0.5470541568 | E60: 0.4266476807 | F60: 0.4113577768 | G60: 0.007883470886 | H60: 0.01357742197 | I60: 0.5470541568 | J60: 1.037169357 | K60: 0.5806309108
B61: 0.54 | C61: 1.696460033 | D61: 0.5626666169 | E61: 0.4312206184 | F61: 0.4113577768 | G61: 0.00824917811 | H61: 0.01357742197 | I61: 0.5626666169 | J61: 1.048286049 | K61: 0.6075658639
B62: 0.55 | C62: 1.72787596 | D62: 0.5782172326 | E62: 0.4355287504 | F62: 0.4113577768 | G62: 0.008613365733 | H62: 0.01357742197 | I62: 0.5782172326 | J62: 1.058759005 | K62: 0.6343888958
B63: 0.56 | C63: 1.759291886 | D63: 0.5936906574 | E63: 0.4395709891 | F63: 0.4113577768 | G63: 0.008974881185 | H63: 0.01357742197 | I63: 0.5936906574 | J63: 1.068585581 | K63: 0.6610151178
B64: 0.57 | C64: 1.790707813 | D64: 0.6090716208 | E64: 0.4433467009 | F64: 0.4113577768 | G64: 0.009332579197 | H64: 0.01357742197 | I64: 0.6090716208 | J64: 1.077764238 | K64: 0.687360179
B65: 0.58 | C65: 1.822123739 | D65: 0.6243449437 | E65: 0.4468557054 | F65: 0.4113577768 | G65: 0.009685329214 | H65: 0.01357742197 | I65: 0.6243449437 | J65: 1.086294536 | K65: 0.713340812
B66: 0.59 | C66: 1.853539666 | D66: 0.6394955531 | E66: 0.4500982738 | F66: 0.4113577768 | G66: 0.01003202269 | H66: 0.01357742197 | I66: 0.6394955531 | J66: 1.094177135 | K66: 0.7388753705
B67: 0.6 | C67: 1.884955592 | D67: 0.6545084973 | E67: 0.4530751279 | F67: 0.4113577768 | G67: 0.01037158021 | H67: 0.01357742197 | I67: 0.6545084973 | J67: 1.10141379 | K67: 0.7638843537
B68: 0.61 | C68: 1.916371519 | D68: 0.6693689602 | E68: 0.4557874368 | F68: 0.4113577768 | G68: 0.01070295837 | H68: 0.01357742197 | I68: 0.6693689602 | J68: 1.108007342 | K68: 0.7882909135
B69: 0.62 | C69: 1.947787445 | D69: 0.6840622765 | E69: 0.4582368147 | F69: 0.4113577768 | G69: 0.01102515639 | H69: 0.01357742197 | I69: 0.6840622765 | J69: 1.113961715 | K69: 0.8120213406
B70: 0.63 | C70: 1.979203372 | D70: 0.6985739454 | E70: 0.4604253171 | F70: 0.4113577768 | G70: 0.01133722237 | H70: 0.01357742197 | I70: 0.6985739454 | J70: 1.119281908 | K70: 0.8350055253
B71: 0.64 | C71: 2.010619299 | D71: 0.7128896459 | E71: 0.4623554372 | F71: 0.4113577768 | G71: 0.01163825913 | H71: 0.01357742197 | I71: 0.7128896459 | J71: 1.123973979 | K71: 0.85717739
B72: 0.65 | C72: 2.042035225 | D72: 0.72699525 | E72: 0.4640301007 | F72: 0.4113577768 | G72: 0.0119274297 | H72: 0.01357742197 | I72: 0.72699525 | J72: 1.128045042 | K72: 0.8784752898
B73: 0.66 | C73: 2.073451152 | D73: 0.7408768372 | E73: 0.4654526614 | F73: 0.4113577768 | G73: 0.01220396226 | H73: 0.01357742197 | I73: 0.7408768372 | J73: 1.13150325 | K73: 0.8988423785
B74: 0.67 | C74: 2.104867078 | D74: 0.754520708 | E74: 0.4666268948 | F74: 0.4113577768 | G74: 0.01246715458 | H74: 0.01357742197 | I74: 0.754520708 | J74: 1.134357781 | K74: 0.9182269365
B75: 0.68 | C75: 2.136283005 | D75: 0.7679133976 | E75: 0.4675569922 | F75: 0.4113577768 | G75: 0.01271637799 | H75: 0.01357742197 | I75: 0.7679133976 | J75: 1.136618823 | K75: 0.9365826601
B76: 0.69 | C76: 2.167698931 | D76: 0.781041689 | E76: 0.4682475536 | F76: 0.4113577768 | G76: 0.01295108068 | H76: 0.01357742197 | I76: 0.781041689 | J76: 1.13829756 | K76: 0.9538689089
B77: 0.7 | C77: 2.199114858 | D77: 0.7938926263 | E77: 0.4687035802 | F77: 0.4113577768 | G77: 0.01317079054 | H77: 0.01357742197 | I77: 0.7938926263 | J77: 1.139406149 | K77: 0.9700509099
B78: 0.71 | C78: 2.230530784 | D78: 0.8064535269 | E78: 0.4689304665 | F78: 0.4113577768 | G78: 0.01337511728 | H78: 0.01357742197 | I78: 0.8064535269 | J78: 1.139957703 | K78: 0.9850999187
B79: 0.72 | C79: 2.261946711 | D79: 0.818711995 | E79: 0.4689339908 | F79: 0.4113577768 | G79: 0.01356375406 | H79: 0.01357742197 | I79: 0.818711995 | J79: 1.139966271 | K79: 0.9989933355
B80: 0.73 | C80: 2.293362637 | D80: 0.8306559328 | E80: 0.4687203066 | F80: 0.4113577768 | G80: 0.01373647843 | H80: 0.01357742197 | I80: 0.8306559328 | J80: 1.13944681 | K80: 1.011714776
B81: 0.74 | C81: 2.324778564 | D81: 0.8422735531 | E81: 0.4682959321 | F81: 0.4113577768 | G81: 0.01389315268 | H81: 0.01357742197 | I81: 0.8422735531 | J81: 1.138415167 | K81: 1.023254099
B82: 0.75 | C82: 2.356194491 | D82: 0.8535533907 | E82: 0.4676677395 | F82: 0.4113577768 | G82: 0.01403372366 | H82: 0.01357742197 | I82: 0.8535533907 | J82: 1.136888047 | K82: 1.033607388
B83: 0.76 | C83: 2.387610417 | D83: 0.8644843138 | E83: 0.4668429435 | F83: 0.4113577768 | G83: 0.0141582219 | H83: 0.01357742197 | I83: 0.8644843138 | J83: 1.13488299 | K83: 1.042776893
B84: 0.77 | C84: 2.419026344 | D84: 0.8750555349 | E84: 0.4658290896 | F84: 0.4113577768 | G84: 0.01426676029 | H84: 0.01357742197 | I84: 0.8750555349 | J84: 1.132418337 | K84: 1.050770929
B85: 0.78 | C85: 2.45044227 | D85: 0.8852566215 | E85: 0.4646340408 | F85: 0.4113577768 | G85: 0.01435953213 | H85: 0.01357742197 | I85: 0.8852566215 | J85: 1.129513205 | K85: 1.057603731
B86: 0.79 | C86: 2.481858197 | D86: 0.8950775063 | E86: 0.4632659641 | F86: 0.4113577768 | G86: 0.01443680871 | H86: 0.01357742197 | I86: 0.8950775063 | J86: 1.126187446 | K86: 1.063295281
B87: 0.8 | C87: 2.513274123 | D87: 0.9045084973 | E87: 0.4617333167 | F87: 0.4113577768 | G87: 0.01449893637 | H87: 0.01357742197 | I87: 0.9045084973 | J87: 1.12246162 | K87: 1.067871087
B88: 0.81 | C88: 2.54469005 | D88: 0.9135402872 | E88: 0.4600448302 | F88: 0.4113577768 | G88: 0.0145463332 | H88: 0.01357742197 | I88: 0.9135402872 | J88: 1.118356954 | K88: 1.071361944
B89: 0.82 | C89: 2.576105976 | D89: 0.9221639628 | E89: 0.4582094956 | F89: 0.4113577768 | G89: 0.01457948524 | H89: 0.01357742197 | I89: 0.9221639628 | J89: 1.113895303 | K89: 1.073803647
B90: 0.83 | C90: 2.607521903 | D90: 0.9303710136 | E90: 0.4562365459 | F90: 0.4113577768 | G90: 0.01459894238 | H90: 0.01357742197 | I90: 0.9303710136 | J90: 1.109099114 | K90: 1.075236699
B91: 0.84 | C91: 2.638937829 | D91: 0.9381533401 | E91: 0.4541354389 | F91: 0.4113577768 | G91: 0.01460531393 | H91: 0.01357742197 | I91: 0.9381533401 | J91: 1.103991378 | K91: 1.075705974
B92: 0.85 | C92: 2.670353756 | D92: 0.9455032622 | E92: 0.451915839 | F92: 0.4113577768 | G92: 0.01459926389 | H92: 0.01357742197 | I92: 0.9455032622 | J92: 1.098595589 | K92: 1.075260379
B93: 0.86 | C93: 2.701769682 | D93: 0.9524135263 | E93: 0.449587598 | F93: 0.4113577768 | G93: 0.01458150608 | H93: 0.01357742197 | I93: 0.9524135263 | J93: 1.092935696 | K93: 1.073952486
B94: 0.87 | C94: 2.733185609 | D94: 0.9588773129 | E94: 0.4471607346 | F94: 0.4113577768 | G94: 0.01455279899 | H94: 0.01357742197 | I94: 0.9588773129 | J94: 1.087036054 | K94: 1.07183816
B95: 0.88 | C95: 2.764601536 | D95: 0.964888243 | E95: 0.4446454138 | F95: 0.4113577768 | G95: 0.01451394058 | H95: 0.01357742197 | I95: 0.964888243 | J95: 1.080921375 | K95: 1.068976173
B96: 0.89 | C96: 2.796017462 | D96: 0.9704403845 | E96: 0.4420519246 | F96: 0.4113577768 | G96: 0.01446576304 | H96: 0.01357742197 | I96: 0.9704403845 | J96: 1.074616671 | K96: 1.065427816
B97: 0.9 | C97: 2.827433389 | D97: 0.9755282582 | E97: 0.4393906574 | F97: 0.4113577768 | G97: 0.0144091274 | H97: 0.01357742197 | I97: 0.9755282582 | J97: 1.0681472 | K97: 1.061256506
B98: 0.91 | C98: 2.858849315 | D98: 0.9801468429 | E98: 0.4366720799 | F98: 0.4113577768 | G98: 0.01434491832 | H98: 0.01357742197 | I98: 0.9801468429 | J98: 1.061538409 | K98: 1.056527399
B99: 0.92 | C99: 2.890265242 | D99: 0.9842915806 | E99: 0.4339067121 | F99: 0.4113577768 | G99: 0.01427403882 | H99: 0.01357742197 | I99: 0.9842915806 | J99: 1.054815872 | K99: 1.051307004
B100: 0.93 | C100: 2.921681168 | D100: 0.987958381 | E100: 0.4311051008 | F100: 0.4113577768 | G100: 0.01419740521 | H100: 0.01357742197 | I100: 0.987958381 | J100: 1.048005228 | K100: 1.04566281
B101: 0.94 | C101: 2.953097095 | D101: 0.9911436254 | E101: 0.4282777926 | F101: 0.4113577768 | G101: 0.0141159421 | H101: 0.01357742197 | I101: 0.9911436254 | J101: 1.041132116 | K101: 1.039662914
B102: 0.95 | C102: 2.984513021 | D102: 0.9938441703 | E102: 0.4254353062 | F102: 0.4113577768 | G102: 0.01403057766 | H102: 0.01357742197 | I102: 0.9938441703 | J102: 1.034222106 | K102: 1.03337568
B103: 0.96 | C103: 3.015928948 | D103: 0.9960573507 | E103: 0.4225881037 | F103: 0.4113577768 | G103: 0.01394223909 | H103: 0.01357742197 | I103: 0.9960573507 | J103: 1.027300631 | K103: 1.026869396
B104: 0.97 | C104: 3.047344874 | D104: 0.9977809823 | E104: 0.419746561 | F104: 0.4113577768 | G104: 0.0138518483 | H104: 0.01357742197 | I104: 0.9977809823 | J104: 1.020392915 | K104: 1.020211961
B105: 0.98 | C105: 3.078760801 | D105: 0.9990133642 | E105: 0.416920938 | F105: 0.4113577768 | G105: 0.01376031788 | H105: 0.01357742197 | I105: 0.9990133642 | J105: 1.013523899 | K105: 1.013470592
B106: 0.99 | C106: 3.110176727 | D106: 0.9997532802 | E106: 0.4141213466 | F106: 0.4113577768 | G106: 0.01366854743 | H106: 0.01357742197 | I106: 0.9997532802 | J106: 1.006718166 | K106: 1.006711543
B107: 1 | C107: 3.141592654 | D107: 1 | E107: 0.4113577197 | F107: 0.4113577768 | G107: 0.01357742009 | H107: 0.01357742197 | I107: 1 | J107: 0.9999998612 | K107: 0.9999998612

Sheet Diseño Cribado
B2: ESCUELA COLOMBIANA DE INGENIERIA JULIO GARAVITO | I2: ESCUELA COLOMBIANA DE INGENIERIA JULIO GARAVITO
B4: ESPECIALIZACIÓN EN RECURSOS HIDRÁULICOS Y MEDIO AMBIENTE | I4: ESPECIALIZACIÓN EN RECURSOS HIDRÁULICOS Y MEDIO AMBIENTE
B6: Trabajo de grado: | C6: Guía y herramienta computacional para el diseño hidráulico de un sistema de tratamiento preliminar (cribado) de aguas residuales | I6: Trabajo de grado: | J6: Guía y herramienta computacional para el diseño hidráulico de un sistema de tratamiento preliminar (cribado y Desarenador) de aguas residuales
A8: Datos Ingresados por el Usuario
A9: Datos salida aplicativo | H9: Resultados De Diseño del Sistema de Pretratamiento (Cribado Grueso y Fino)
A11: 1. Datos de entrada para el diseño de las unidades | H11: 3. Dimensionamiento Sistema de Cribado Grueso y Fino
A13: Caudales de diseño del ST | H13: Area de Flujo Libre | K13: A | L13: m2 | M13: =a(E15,F41) -> 0.08 | N13: =a(E15,F51) -> 0.08
H14: Longitud Libre entre barras (Total) | K14: ET | L14: m | M14: =Et(M13,E31) -> 0.27 | N14: =Etf(N13,M46) -> 0.2
A15: Caudal Máximo | C15: Qmax | D15: m3/s | E15: 0.1 | H15: Separación entre barras | K15: Sp | L15: m | M15: =F39 -> 0.1 | N15: =F49 -> 0.01
A16: Caudal Medio | C16: Qmed | D16: m3/s | E16: =E15/2 -> 0.05 | H16: Numero de separaciones | K16: #Sp | L16: Und | M16: =NSp(M14,M15) -> 3 | N16: =NSp(N14,N15) -> 20
A17: Caudal Minimo | C17: Qmin | D17: m3/s | E17: =E16/2 -> 0.025 | H17: longitud Libre entre barras (Total-Ajustado) | K17: ER | L17: m | M17: =Er(M15,M16) -> 0.3 | N17: =Er(N15,N16) -> 0.2
H18: Numero total de barras | K18: #B | L18: Und | M18: =M16-1 -> 2 | N18: =N16-1 -> 19
A19: Caracteristicas del ducto de entrada PTAR | H19: Ancho de barras | K19: Ab | L19: m | M19: =F40 -> 0.009 | N19: =F50 -> 0.01
F20: Cotas del Canal | H20: Ancho de la rejilla | K20: Ac | L20: m | M20: =Ac(M17,M18,M19) -> 0.318 | N20: =M20 -> 0.318
A21: Cota Batea tuberia de entrada | C21: Z0 | D21: m | E21: 0.12 | F21: Z1 | G21: 0 | H21: Coeficiente de Eficiencia | K21: CE | L21: % | M21: =Ce(M17,M20) -> 94.34 | N21: =Ce(N17,N20) -> 62.89
A22: Pendiente ducto entrada PTAR | C22: S | D22: m/m | E22: 0.002 | F22: Z2 | G22: 0 | H22: Longitud de la rejilla | K22: L | L22: m | M22: =l(M28,F38) -> 0.97 | N22: =l(M28,F48) -> 0.97
A23: Rugosidad | C23: n | E23: 0.015 | F23: Z3 | G23: 0 | H23: longitud que ocupa la rejilla en el canal | K23: Lc | L23: m | M23: =lc(M22,M28) -> 0.25933 | N23: =lc(N22,M28) -> 0.25933
A24: Diametro de la tuberia de entrada | C24: D | D24: in | E24: 20
D25: m | E25: =d(E24) -> 0.51 | H25: 3.1 Dimensionamiento Canal del Sistema de Cribado
A27: Condiciones hidraulicas Iniciales (Entrada ST) | H27: Ancho del Canal | K27: AC | L27: m | M27: =N20 -> 0.318
H28: Profundida total del canal (incluye borde libre) | K28: Pc | L28: m | M28: =M50+0.4 -> 0.9346927147
A29: Radio Hidraulico | C29: RH | D29: m | E29: =RH(E25) -> 0.1275 | H29: Longitud Total del Canal | K29: Lc | L29: m | M29: =M30+M31+M32+M33+M34+M35 -> 2.21866
A30: Velocidad del Fluido en el conducto de entrada al ST | C30: V0 | D30: m/s | E30: ='relaciones hidraulicas '!K3 -> 0.7996396352 | H30: Longitud de aquietamiento | L30: m | M30: 0.3
A31: Altura Lamina de Agua en el coducto de entrada al ST | C31: H0 | D31: m | E31: ='relaciones hidraulicas '!K4 -> 0.2948907886 | H31: longitud de la placa de mantenimiento rejilla gruesa | L31: m | M31: 0.4
H32: Longitud de la rejilla gruesa en el canal | L32: m | M32: =M23 -> 0.25933
A33: 2. Selección de Criterios de Diseño para el Diseño de los ST | H33: Separacion entre la rejilla gruesa y placa de mantenimiento rejilla Fina | L33: m | M33: 0.7
H34: Longitud de la rejilla Final en el canal (incluye longitud de la placa de mantenimiento) | L34: m | M34: =N23 -> 0.25933
A35: Criterios de Diseño de la rejilla gruesa | H35: Longitud Rejilla fina hasta la seccion del desarenador | L35: m | M35: 0.3
A37: Tipo de rejilla | E37: Valor Recomendado | F37: Confirmado por el diseñador | G37: Validación de datos | H37: 5. Calculo Condiciones Hidraulicas en el Canal de Cribado
A38: Angulo de inclinación (con la horizontal) | C38: β | D38: º | E38: 75 | F38: 75 | G38: OK
A39: Separación entre Barras | C39: Sb | D39: m | E39: 0.07 | F39: 0.1 | G39: OK | H39: 5.1 Condiciones Hidraulicas Aguas Arriba de la Rejilla Gruesa | P39: Polinomio d2
A40: Ancho de Barras | C40: Ab | D40: m | E40: 0.009 | F40: 0.009 | G40: OK | H40: Altura de la lamina de agua, aguas arriba de la rejilla gruesa | K40: d2 | L40: m | M40: 0.4202437176 | P40: 1 | Q40: d32 | R40: =T42-S42+W42 -> -0.4402228816 | S40: d22 | T40: =V42-U42 -> 0.00352813177 | V40: =(P40*M40^3)+(R40*M40^2)+T40 -> -2.841226054e-07
A41: Velocidad flujo maximo | C41: Vmax | D41: m/s | E41: 1.2 | F41: 1.2 | G41: OK | H41: Velocidad aguas arriba de la rejilla gruesa | K41: V2 | L41: m/s | M41: =Vddos(E15,M40,M20) -> 0.748 | P41: A | R41: B | T41: C | V41: EQ
A42: Velocidad flujo medio | C42: Vmed | D42: m/s | E42: 0.9 | F42: 0.6 | G42: OK | H42: Velocidad a traves de las aberturas de la rejilla gruesa | K42: VR | L42: m/s | M42: =vr(E15,M40,M14) -> 0.881 | P42: 2*g | Q42: =2*9.81 -> 19.62 | S42: =ROUND((E21+E31+((E30^2)/Q42)),2) -> 0.45 | T42: =Q43*((E30^2)/Q42) -> 0.009777118443 | U42: =Q43*((E15/M20)^2)/Q42 -> 0.001512056473 | V42: =((E15/M20)^2)/Q42 -> 0.005040188243 | W42: =G21 -> 0
A43: Velocidad flujo mínimo | C43: Vmin | D43: m/s | E43: 0.6 | F43: 0.6 | G43: OK | H43: Perdidad de carga a traves de la rejilla gruesa | K43: hL | L43: m | M43: =hL(M42,M41) -> 0.011 | P43: Ke | Q43: 0.3 | S43: 1 | T43: 2hL1 | U43: 2hL2 | V43: 1/d2 | W43: Z2
A45: Criterios de Diseño de la rejilla Fina | H45: 5.2 Condiciones Hidraulicas Aguas Abajo de la Rejilla Gruesa | P45: Polinomio d3
H46: Altura de la lamina de agua, aguas abajo de la rejilla gruesa | K46: d3 | L46: m | M46: 0.4073915511 | P46: 1 | Q46: d33 | R46: =M43-S48+U48 -> -0.4377607411 | S46: d23 | T46: =T48 -> 0.005040188243 | V46: =(P46*M46^3)+(R46*M46^2)+T46 -> -1.217052476e-07
A47: Tipo de rejilla | E47: Valor Recomendado | F47: Confirmado por el diseñador | G47: Validación de datos | H47: Velocidad aguas abajo de la rejilla gruesa | K47: V3 | L47: m/s | M47: =Vdtres(E15,M46,M20) -> 0.772 | P47: A | R47: B | T47: C | V47: EQ
A48: Angulo de inclinación | C48: β | D48: º | E48: 80 | F48: 75 | G48: OK | P48: 2*g | Q48: =2*9.81 -> 19.62 | S48: =E26+M40+((M41^2)/Q48) -> 0.4487607411 | T48: =((E15/M20)^2)/Q48 -> 0.005040188243 | U48: =G22 -> 0
A49: Separación entre Barras | C49: Sb | D49: m | E49: 0.015 | F49: 0.01 | G49: OK | H49: 5.3 Condiciones Hidraulicas Aguas Arriba de la Rejilla Gruesa al 50% de obstruccion | P49: Ke | Q49: 0.3 | S49: 1 | T49: 2 | U49: Z3
A50: Ancho de Barras | C50: Ab | D50: m | E50: 0.009 | F50: 0.01 | G50: OK | H50: Altura de la lamina de agua, aguas arriba de la rejilla gruesa (50%) | K50: d2` | L50: m | M50: 0.5346927147 | P50: Polinomio d250%
A51: Velocidad flujo maximo | C51: Vmax | D51: m/s | E51: 1.2 | F51: 1.2 | G51: OK | H51: Velocidad aguas arriba de la rejilla gruesa (50%) | K51: V2` | L51: m/s | M51: =Vddos(E25,M50,M30) -> 3.179 | P51: 1 | Q51: d32 | R51: =-1*U53-W42 -> -0.4377679018 | S51: d22 | T51: =T53-S53 -> -0.02771081176 | V51: =(P51*M50^3)+(R51*M50^2)+(T51) -> -3.664477805e-07
A52: Velocidad flujo medio | C52: Vmed | D52: m/s | E52: 0.9 | F52: 1 | G52: OK | H52: Velocidad a traves de las aberturas de la rejilla gruesa (50%) | K52: VR` | L52: m/s | M52: =vr(E15,M50,M14) -> 0.693 | P52: A | R52: B | T52: C | V52: EQ
A53: Velocidad flujo mínimo | C53: Vmin | D53: m/s | E53: 0.6 | F53: 0.9 | G53: OK | H53: Perdidad de carga a traves de la rejilla gruesa (50%) | K53: hL50% | L53: m | M53: =hLOBS(M52,M51) -> -0.701 | P53: 2*g | Q53: =2*9.81 -> 19.62 | S53: =ROUND((((((E15/(M14*0.5))^2)-(E15/M20)^2))/(Q53*0.7)),6) -> 0.032751 | T53: =((E15/M20)^2)/Q53 -> 0.005040188243 | U53: =U48+M46+((M47^2)/Q53) -> 0.4377679018 | V53: =G21 -> 0
P54: Ke | S54: Hl50 | T54: 1/d2 | U54: P2 | V54: Z2
H55: 5.4 Condiciones Hidraulicas Aguas Arriba de la Rejilla Gruesa | P55: Polinomio d4
H56: Altura de la lamina de agua, aguas abajo de la rejilla Fina | K56: d4 | L56: m | M56: 0.4074140449 | P56: 1 | Q56: d34 | R56: =-1*S58-V58-W58 -> -0.4681442525 | S56: d24 | T56: =U58+T58 -> 0.01008037649 | V56: =(P56*M56^3)+(R56*M56^2)+(T56) -> -1.320748823e-10
H57: Velocidad aguas abajo de la rejilla Fina | K57: V4 | L57: m/s | M57: =Vddos(E15,M56,M20) -> 0.772 | P57: A | R57: B | T57: C | V57: EQ
H58: Perdidad de carga a traves de la rejilla Fina | K58: hL | L58: m | M58: =hL(M57,M56) -> 0.022 | P58: 2*g | Q58: =2*9.81 -> 19.62 | S58: =V58+M46+((M47^2)/Q58) -> 0.4377679018 | T58: =((E15/N20)^2)/Q58 -> 0.005040188243 | U58: =((E15/N20)^2)/Q58 -> 0.005040188243 | V58: =G23 -> 0 | W58: =(M47^2)/Q58 -> 0.03037635066
P59: Ke | S59: 1 | T59: Hl | U59: 1/d4 | V59: z4 | W59: hL1
B60: ESCUELA COLOMBIANA DE INGENIERIA JULIO GARAVITO
B62: ESPECIALIZACIÓN EN RECURSOS HIDRÁULICOS Y MEDIO AMBIENTE
B64: Trabajo de grado: | C64: Guía y herramienta computacional para el diseño hidráulico de un sistema de tratamiento preliminar (cribado) de aguas residuales
A66: Esquema del Sistema de Pretratamiento (Cribado Grueso y Fino y Desarenador)
A82: Perfil Hidraulico Sistema de Pretratamiento (Cribado Grueso y Fino )
A89: =E31 -> 0.2948907886 | B89: =M40 -> 0.4202437176 | C89: =M46 -> 0.4073915511 | D89: =M56 -> 0.4074140449

Sheet Diseño Desarenador
B1: ESCUELA COLOMBIANA DE INGENIERIA JULIO GARAVITO
B3: ESPECIALIZACIÓN EN RECURSOS HIDRÁULICOS Y MEDIO AMBIENTE
B5: Trabajo de grado: | C5: Guía y herramienta computacional para el diseño hidráulico de un sistema de tratamiento preliminar ( Desarenador) de aguas residuales
C7: Datos Ingresados por el Usuario
C8: Datos salida aplicativo
A9: 1. Datos de entrada para el diseño de las unidades
A11: Caudales de diseño del ST
A13: Caudal de emergencia | C13: Qemer | D13: m3/s | E13: =E14+E14*0.3 -> 0.065
A14: Caudal Máximo | C14: Qmax | D14: m3/s | E14: 0.05
A15: Caudal Medio | C15: Qmed | D15: m3/s | E15: =E14/2 -> 0.025
A16: Caudal Minimo | C16: Qmin | D16: m3/s | E16: =E15/2 -> 0.0125
A18: Varibales y constantes para el diseño del desarenador
A20: Numeros de desarenadores | C20: # | D20: Unidad | E20: 2
A21: Numero de desarenadores para Caudal de emargencia | C21: # | D21: Unidad | E21: =E20-1 -> 1
A22: Tiempo de Retencion | C22: Tr | D22: Seg | E22: 60
A23: Velocidad Horizontal | C23: Vh | D23: m/s | E23: 0.3
A24: Velocidad de Sedimentacion | C24: Vs | D24: m/min | E24: 1.15
C25: Vs | D25: m/s | E25: =ROUND((E24/60),3) -> 0.019
C26: Vs | D26: m3/m2-dia | E26: 1730
A27: Gravedad | C27: 2*g | D27: m/s2 | E27: =2*9.81 -> 19.62
A29: Caracteristicas hidraulicas de entrada al Desarenador para una sección de control de vertedero rectangular
A31: Se mantiene la lamina de agua de la salidad del sistema de cribado?
A32: Altura de la seccion | C32: H | D32: m | E32: 0.471
A33: Ancho del canal | C33: T | D33: m | E33: 0.34
A34: Profundidad del canal | C34: Pc | D34: m
A36: Canales rectangulares la Profundidad critica
A38: Cabeza de velocidad | C38: Vc2/2g | E38: =ROUND((1/3.1)*(E32+((E23^2)/E27)),3) -> 0.153
A39: Profundidad Critica | C39: dcQMH | D39: m | E39: =dcqmh(E38) -> 0.31
A40: Velicidad Critica | C40: VcQMH | D40: m/s | E40: =vcqmh(E38,E27) -> 1.733
A42: Dimensiones de la seccion de control
A44: Area de la seccion de control | C44: Aqmh | D44: m2 | E44: =aqmh(E14,E40) -> 0.0289
A45: Ancho de la seccion de control | C45: w | D45: m | E45: =w(E44,E39) -> 0.093
A47: Diseño del canal para los caudales de Diseño
E48: Qmed | F48: Q min | G48: Qmer
A49: Area en la seccion de control | C49: a | D49: m2 | E49: =aqmd(E15,E45) -> 0.02 | F49: =aqmin(E16,E45) -> 0.011 | G49: =aqmin(E13,E45) -> 0.034
A50: Calculando la profundidad critica en la seccion de control | C50: dcQMD | D50: m | E50: =dcQMD(E49,E45) -> 0.22 | F50: =dcqmin(F49,$E$45) -> 0.118 | G50: =dcqmin(G49,$E$45) -> 0.366
A51: Calculando la altura de la seccion de control | C51: H | D51: m | E51: =HQMD(E50,E23,E27) -> 0.34 | F51: =hqmin(F50,$E$23,$E$27) -> 0.178 | G51: =hqmin(G50,$E$23,$E$27) -> 0.563
A52: Ancho de la lamina de agua en el desarenador | C52: T | D52: m | E52: =Tqmd(E15,E23,E51) -> 0.37 | F52: =tqmin(E16,F51,$E$23) -> 0.35 | G52: =tqmin(E13,G51,$E$23) -> 0.58
A54: Longitud del Desarenador
A56: Longitud del Desarenador | C56: L | D56: m | E56: =ld(E57,E60) -> 10.704
A57: longitud teorica | C57: Lt | D57: m | E57: =Lt(E32,E23,E25) -> 7
A58: longitud minima adicional | C58: Lmin | D58: m | E58: =lmin(G51) -> 1.13
A59: longitud maxima adicional | C59: Lmax | D59: m | E59: =lmax(E57) -> 3.5
A60: Se dopta una longitud adicional | C60: Ladop | D60: m | E60: =Ladop(E58,E59) -> 3.704
A62: Tiempo de retención hidraulico en el desarenador para caudal máximo
A64: Tiempo de retencion hidraulico | C64: seg | D64: TH | E64: =THseg(E56,E23) -> 35.68
C65: min | D65: TH | E65: =THmin(E64) -> 0.5946666667
A67: Tiempo de sedimentacion para caudal maximo
A69: Tiempo de sedimentación | C69: min | D69: Ts | E69: =TSmin(E32,E24) -> 0.41
C70: seg | D70: Ts | E70: =TSseg(E69) -> 24.6
A72: Volumen de arena retenida
A74: Volumen Tratado | B74: 1000000 | C74: m3 | D74: Volumen de arena retenido | F74: 30 | G74: m3
A76: Cantidad de arena retenida al transitar el caudal maximo | C76: m3 | D76: Varena | E76: =Varena(E14,F74,B74) -> 0.13
